[Event "Late-Titled-Tuesday-Blitz-March-12-2024"]
[Site "Chess.com"]
[Date "2024.03.12"]
[Round "5"]
[White "RuleOfTwo"]
[Black "ncofre98"]
[Result "0-1"]
[WhiteElo "2474"]
[BlackElo "2610"]
[TimeControl "180+1"]
[EndTime "14:55:13 PDT"]
[Termination "ncofre98 won by resignation"]

1. Nf3 {[%clk 0:03:00.2]} 1... c5 {[%clk 0:02:56]} 2. e4 {[%clk 0:02:59.9]} 2...
d6 {[%clk 0:02:55.9]} 3. d4 {[%clk 0:03:00.3]} 3... cxd4 {[%clk 0:02:56.8]} 4.
Qxd4 {[%clk 0:03:00.9]} 4... Nf6 {[%clk 0:02:56.9]} 5. Nc3 {[%clk 0:03:00.5]}
5... Nc6 {[%clk 0:02:56.9]} 6. Bb5 {[%clk 0:03:00.1]} 6... Bd7 {[%clk
0:02:55.9]} 7. Bxc6 {[%clk 0:03:00.6]} 7... Bxc6 {[%clk 0:02:56.8]} 8. O-O
{[%clk 0:03:00]} 8... e5 {[%clk 0:02:57.1]} 9. Qd3 {[%clk 0:02:57.4]} 9... h6
{[%clk 0:02:57.6]} 10. Rd1 {[%clk 0:02:57.3]} 10... Be7 {[%clk 0:02:55.9]} 11.
h3 {[%clk 0:02:56.4]} 11... O-O {[%clk 0:02:54.6]} 12. Be3 {[%clk 0:02:56.4]}
12... a6 {[%clk 0:02:51.4]} 13. a4 {[%clk 0:02:55.3]} 13... Qa5 {[%clk
0:02:50.5]} 14. Nd2 {[%clk 0:02:52.7]} 14... d5 {[%clk 0:02:46.2]} 15. exd5
{[%clk 0:02:30.4]} 15... Bxd5 {[%clk 0:02:43.2]} 16. Nxd5 {[%clk 0:02:20.4]}
16... Qxd5 {[%clk 0:02:41.8]} 17. Nc4 {[%clk 0:02:15.3]} 17... Qe6 {[%clk
0:02:27]} 18. a5 {[%clk 0:01:21.9]} 18... Rac8 {[%clk 0:02:13.6]} 19. b3 {[%clk
0:01:20.7]} 19... Rc6 {[%clk 0:01:54.6]} 20. Bb6 {[%clk 0:01:16.1]} 20... Nh5
{[%clk 0:01:46.3]} 21. Qe2 {[%clk 0:01:06.5]} 21... Nf4 {[%clk 0:01:33.4]} 22.
Qxe5 {[%clk 0:00:57.3]} 22... Nxh3+ {[%clk 0:01:33.4]} 23. gxh3 {[%clk
0:00:40.7]} 23... Qxh3 {[%clk 0:01:33.7]} 24. Rd3 {[%clk 0:00:30.3]} 24... Rg6+
{[%clk 0:01:33.7]} 25. Rg3 {[%clk 0:00:30.2]} 25... Bf6 {[%clk 0:01:33.2]} 26.
Qe1 {[%clk 0:00:16.1]} 26... Rxg3+ {[%clk 0:01:30.1]} 27. fxg3 {[%clk 0:00:17]}
27... Bxa1 {[%clk 0:01:29.5]} 28. Qxa1 {[%clk 0:00:16.2]} 28... Qxg3+ {[%clk
0:01:28.9]} 29. Kf1 {[%clk 0:00:16.9]} 29... Re8 {[%clk 0:01:26.4]} 30. Bf2
{[%clk 0:00:06.5]} 30... Qh3+ {[%clk 0:01:25.3]} 31. Kg1 {[%clk 0:00:07.1]}
31... Re6 {[%clk 0:01:25.1]} 32. Ne5 {[%clk 0:00:06]} 32... Qh5 {[%clk
0:01:07.7]} 33. Bd4 {[%clk 0:00:06.3]} 33... f6 {[%clk 0:01:05.9]} 34. Nd3
{[%clk 0:00:03.6]} 34... Qg4+ {[%clk 0:01:01.9]} 35. Kf1 {[%clk 0:00:04]} 35...
Qe2+ {[%clk 0:00:58.1]} 36. Kg1 {[%clk 0:00:04.1]} 36... Re4 {[%clk 0:00:57.9]}
37. Nf2 {[%clk 0:00:02.8]} 37... Rh4 {[%clk 0:00:41.6]} 38. Qc3 {[%clk
0:00:03.2]} 38... Rh5 {[%clk 0:00:38.8]} 39. Qc8+ {[%clk 0:00:03]} 39... Kh7
{[%clk 0:00:38.4]} 40. Qc3 {[%clk 0:00:01.8]} 40... Rg5+ {[%clk 0:00:37.6]} 41.
Kh2 {[%clk 0:00:02.5]} 41... Rf5 {[%clk 0:00:19.7]} 42. Qg3 {[%clk 0:00:01.8]}
42... Qh5+ {[%clk 0:00:15]} 43. Qh3 {[%clk 0:00:01.7]} 43... Qg5 {[%clk
0:00:12]} 44. Qg3 {[%clk 0:00:02.2]} 44... Qf4 {[%clk 0:00:10.7]} 45. Kg2 {[%clk
0:00:02.1]} 45... Qxg3+ {[%clk 0:00:07.3]} 46. Kxg3 {[%clk 0:00:03]} 46... h5
{[%clk 0:00:07.2]} 47. c4 {[%clk 0:00:03.1]} 47... g5 {[%clk 0:00:07.4]} 48. Ne4
{[%clk 0:00:03.5]} 48... Kg6 {[%clk 0:00:06.8]} 49. Nd6 {[%clk 0:00:04.1]} 49...
Rf4 {[%clk 0:00:07.2]} 50. Be3 {[%clk 0:00:03.8]} 50... h4+ {[%clk 0:00:07.5]}
51. Kg2 {[%clk 0:00:03.9]} 51... Rg4+ {[%clk 0:00:05.3]} 52. Kf3 {[%clk
0:00:03.8]} 52... Rg3+ {[%clk 0:00:05.3]} 53. Kf2 {[%clk 0:00:04.5]} 53... f5
{[%clk 0:00:05.7]} 54. Nxb7 {[%clk 0:00:04.8]} 54... f4 {[%clk 0:00:06.1]} 55.
Bd4 {[%clk 0:00:04.8]} 55... Rxb3 {[%clk 0:00:06]} 56. Nc5 {[%clk 0:00:04.8]}
56... Ra3 {[%clk 0:00:04.7]} 57. Nxa6 {[%clk 0:00:04.3]} 57... g4 {[%clk
0:00:03.4]} 58. c5 {[%clk 0:00:03.9]} 58... g3+ {[%clk 0:00:03.2]} 59. Kg2
{[%clk 0:00:03.8]} 59... f3+ {[%clk 0:00:02.7]} 60. Kh3 {[%clk 0:00:04.3]} 60...
Kh5 {[%clk 0:00:02]} 61. c6 {[%clk 0:00:04.5]} 61... Ra2 {[%clk 0:00:01.8]} 62.
Bf2 {[%clk 0:00:03.7]} 62... Rxf2 {[%clk 0:00:01.8]} 0-1

[Event "Late-Titled-Tuesday-Blitz-March-12-2024"]
[Site "Chess.com"]
[Date "2024.03.12"]
[Round "5"]
[White "Practical-Play"]
[Black "Boundless_Strike"]
[Result "0-1"]
[WhiteElo "2457"]
[BlackElo "2603"]
[TimeControl "180+1"]
[EndTime "14:55:16 PDT"]
[Termination "Boundless_Strike won by resignation"]

1. e4 {[%clk 0:02:56.6]} 1... d6 {[%clk 0:02:58.4]} 2. d4 {[%clk 0:02:54.9]}
2... e5 {[%clk 0:02:58.6]} 3. Nf3 {[%clk 0:02:53.2]} 3... Bg4 {[%clk 0:02:58.3]}
4. dxe5 {[%clk 0:02:51.2]} 4... Nc6 {[%clk 0:02:58.2]} 5. h3 {[%clk 0:02:41.7]}
5... Bh5 {[%clk 0:02:55.9]} 6. Bb5 {[%clk 0:02:18]} 6... Qd7 {[%clk 0:02:54.2]}
7. Nc3 {[%clk 0:02:15]} 7... O-O-O {[%clk 0:02:54.2]} 8. Be3 {[%clk 0:02:12.5]}
8... a6 {[%clk 0:02:52.7]} 9. Bxc6 {[%clk 0:02:03.2]} 9... Qxc6 {[%clk
0:02:52.8]} 10. Nd4 {[%clk 0:02:03.3]} 10... Qxc3+ {[%clk 0:02:51.1]} 11. bxc3
{[%clk 0:01:58.5]} 11... Bxd1 {[%clk 0:02:50.6]} 12. Rxd1 {[%clk 0:01:54.9]}
12... dxe5 {[%clk 0:02:50.9]} 13. Nb3 {[%clk 0:01:37.1]} 13... Rxd1+ {[%clk
0:02:49.7]} 14. Kxd1 {[%clk 0:01:38]} 14... Nf6 {[%clk 0:02:50.6]} 15. f3 {[%clk
0:01:25.4]} 15... Be7 {[%clk 0:02:47.9]} 16. Ke2 {[%clk 0:01:24.4]} 16... b6
{[%clk 0:02:44.3]} 17. Kf2 {[%clk 0:01:20.7]} 17... Rg8 {[%clk 0:02:43.2]} 18.
Rd1 {[%clk 0:01:18.9]} 18... g5 {[%clk 0:02:42]} 19. c4 {[%clk 0:01:14.8]} 19...
c5 {[%clk 0:02:40]} 20. a4 {[%clk 0:01:12.5]} 20... a5 {[%clk 0:02:39.9]} 21.
Nc1 {[%clk 0:01:09.5]} 21... Ne8 {[%clk 0:02:30.7]} 22. Nd3 {[%clk 0:00:44.5]}
22... f6 {[%clk 0:02:24.6]} 23. g4 {[%clk 0:00:36.8]} 23... Nd6 {[%clk
0:02:22.2]} 24. Nb2 {[%clk 0:00:36.8]} 24... h5 {[%clk 0:02:20.4]} 25. Kg3
{[%clk 0:00:28.1]} 25... Rh8 {[%clk 0:02:19.1]} 26. Kg2 {[%clk 0:00:19.3]} 26...
Kc7 {[%clk 0:02:16.2]} 27. Re1 {[%clk 0:00:17.6]} 27... Kc6 {[%clk 0:02:16.2]}
28. Rd1 {[%clk 0:00:18.1]} 28... Ne8 {[%clk 0:01:47.9]} 29. Rd2 {[%clk 0:00:14]}
29... Nc7 {[%clk 0:01:47.1]} 30. Rd1 {[%clk 0:00:13.5]} 30... Ne6 {[%clk
0:01:47.3]} 31. c3 {[%clk 0:00:09.9]} 31... Nf8 {[%clk 0:01:02.9]} 32. Nd3
{[%clk 0:00:09]} 32... Ng6 {[%clk 0:00:55.6]} 33. Nf2 {[%clk 0:00:07.2]} 33...
Rh7 {[%clk 0:00:34.4]} 34. Rd2 {[%clk 0:00:04.8]} 34... Nh8 {[%clk 0:00:34.1]}
35. Rd5 {[%clk 0:00:04.1]} 35... Nf7 {[%clk 0:00:34.2]} 36. Rd2 {[%clk
0:00:04.4]} 36... Nd6 {[%clk 0:00:34.5]} 37. Re2 {[%clk 0:00:02.9]} 37... Nxc4
{[%clk 0:00:34.7]} 38. Bc1 {[%clk 0:00:03.5]} 38... b5 {[%clk 0:00:33.7]} 39.
axb5+ {[%clk 0:00:03.4]} 39... Kxb5 {[%clk 0:00:34.6]} 40. gxh5 {[%clk
0:00:04.1]} 40... Rxh5 {[%clk 0:00:34.4]} 41. Ng4 {[%clk 0:00:04.4]} 41... a4
{[%clk 0:00:34.6]} 42. Ra2 {[%clk 0:00:04.6]} 42... Rh8 {[%clk 0:00:33.4]} 43.
Nf2 {[%clk 0:00:03.9]} 43... Rd8 {[%clk 0:00:32.9]} 44. Kf1 {[%clk 0:00:04.2]}
44... Bd6 {[%clk 0:00:28.9]} 45. Ke2 {[%clk 0:00:04.2]} 45... Bc7 {[%clk
0:00:29.3]} 46. Ra1 {[%clk 0:00:04.3]} 46... Bb6 {[%clk 0:00:29.4]} 47. Rb1+
{[%clk 0:00:04.2]} 47... Kc6 {[%clk 0:00:29.7]} 48. Nd3 {[%clk 0:00:04.4]} 48...
Ba5 {[%clk 0:00:29.7]} 49. Ra1 {[%clk 0:00:04.7]} 49... Nb6 {[%clk 0:00:27.3]}
50. Bd2 {[%clk 0:00:04.3]} 50... Rh8 {[%clk 0:00:25.9]} 51. Nf2 {[%clk
0:00:03.5]} 51... Kb5 {[%clk 0:00:21.1]} 52. Ra2 {[%clk 0:00:03.8]} 52... Nc4
{[%clk 0:00:20.9]} 53. Be1 {[%clk 0:00:03.1]} 53... a3 {[%clk 0:00:20.9]} 54.
Ra1 {[%clk 0:00:03.3]} 54... Ka4 {[%clk 0:00:20.9]} 55. Nd3 {[%clk 0:00:03.5]}
55... Bb6 {[%clk 0:00:17.4]} 56. Nf2 {[%clk 0:00:03.1]} 56... Kb3 {[%clk
0:00:17.5]} 57. Kd3 {[%clk 0:00:02.3]} 57... Nb2+ {[%clk 0:00:17.2]} 58. Kd2
{[%clk 0:00:02.3]} 58... Rd8+ {[%clk 0:00:17.2]} 59. Kc1 {[%clk 0:00:02.4]}
59... c4 {[%clk 0:00:16.7]} 60. Rb1 {[%clk 0:00:02.3]} 60... Be3+ {[%clk
0:00:16.8]} 0-1

[Event "Late-Titled-Tuesday-Blitz-March-12-2024"]
[Site "Chess.com"]
[Date "2024.03.12"]
[Round "5"]
[White "LeoWin2012"]
[Black "OverallStranger"]
[Result "1-0"]
[WhiteElo "2204"]
[BlackElo "2383"]
[TimeControl "180+1"]
[EndTime "14:55:29 PDT"]
[Termination "LeoWin2012 won on time"]

1. e4 {[%clk 0:03:00.9]} 1... c5 {[%clk 0:03:00.8]} 2. Nf3 {[%clk 0:02:59.7]}
2... Nc6 {[%clk 0:03:01.4]} 3. c3 {[%clk 0:02:57.6]} 3... Nf6 {[%clk 0:03:01.4]}
4. e5 {[%clk 0:02:54.6]} 4... Nd5 {[%clk 0:03:01.9]} 5. d4 {[%clk 0:02:54.6]}
5... cxd4 {[%clk 0:03:02.6]} 6. cxd4 {[%clk 0:02:53.5]} 6... d6 {[%clk
0:03:03.1]} 7. exd6 {[%clk 0:02:53.2]} 7... Qxd6 {[%clk 0:03:03.6]} 8. Bc4
{[%clk 0:02:52.3]} 8... Bg4 {[%clk 0:02:22.6]} 9. O-O {[%clk 0:02:50]} 9... e6
{[%clk 0:02:21]} 10. Nc3 {[%clk 0:02:49.4]} 10... Be7 {[%clk 0:02:18.9]} 11. Nb5
{[%clk 0:02:44.4]} 11... Qd7 {[%clk 0:02:14.7]} 12. Bxd5 {[%clk 0:02:36.4]}
12... exd5 {[%clk 0:02:13.7]} 13. Bf4 {[%clk 0:02:36.4]} 13... O-O {[%clk
0:02:12]} 14. h3 {[%clk 0:02:35.4]} 14... Bh5 {[%clk 0:02:08]} 15. Qd3 {[%clk
0:02:32.2]} 15... a6 {[%clk 0:02:05]} 16. Nc3 {[%clk 0:02:31.3]} 16... Bxf3
{[%clk 0:02:01.7]} 17. Qxf3 {[%clk 0:02:30.5]} 17... Nxd4 {[%clk 0:02:01.6]} 18.
Qxd5 {[%clk 0:02:24.4]} 18... Ne2+ {[%clk 0:02:01.4]} 19. Kh1 {[%clk 0:02:20.7]}
19... Qxd5 {[%clk 0:01:59.1]} 20. Nxd5 {[%clk 0:02:20.2]} 20... Nxf4 {[%clk
0:01:58.6]} 21. Nxe7+ {[%clk 0:02:15]} 21... Kh8 {[%clk 0:01:57.9]} 22. Rac1
{[%clk 0:02:10.1]} 22... Rfe8 {[%clk 0:01:48.6]} 23. Rc7 {[%clk 0:02:08.9]}
23... Rab8 {[%clk 0:01:48.5]} 24. Rd1 {[%clk 0:02:06]} 24... Ne6 {[%clk
0:01:48]} 25. Rcd7 {[%clk 0:02:01.7]} 25... Nf8 {[%clk 0:01:47.6]} 26. Rc7
{[%clk 0:02:01.2]} 26... Ne6 {[%clk 0:01:46.9]} 27. Rcd7 {[%clk 0:02:00.5]}
27... Rbd8 {[%clk 0:01:31.8]} 28. Nf5 {[%clk 0:01:52.2]} 28... g6 {[%clk
0:01:22.9]} 29. Nh6 {[%clk 0:01:50.8]} 29... Rxd7 {[%clk 0:01:21.1]} 30. Rxd7
{[%clk 0:01:49.9]} 30... Nc5 {[%clk 0:00:52]} 31. Rc7 {[%clk 0:01:43.3]} 31...
b6 {[%clk 0:00:47]} 32. Nxf7+ {[%clk 0:01:42]} 32... Kg8 {[%clk 0:00:47.3]} 33.
Nh6+ {[%clk 0:01:42.3]} 33... Kh8 {[%clk 0:00:47.5]} 34. Rc6 {[%clk 0:01:28]}
34... Re2 {[%clk 0:00:40.8]} 35. Rxb6 {[%clk 0:01:18.1]} 35... Rxf2 {[%clk
0:00:39]} 36. Ng4 {[%clk 0:01:01.6]} 36... Re2 {[%clk 0:00:35.6]} 37. b4 {[%clk
0:00:57.6]} 37... Nd3 {[%clk 0:00:26.3]} 38. a3 {[%clk 0:00:49.9]} 38... Ra2
{[%clk 0:00:21.7]} 39. Rxa6 {[%clk 0:00:20]} 39... Nxb4 {[%clk 0:00:21.3]} 40.
Ra8+ {[%clk 0:00:20]} 40... Kg7 {[%clk 0:00:21.3]} 41. Ra7+ {[%clk 0:00:20.3]}
41... Kf8 {[%clk 0:00:21.4]} 42. Rxh7 {[%clk 0:00:17.2]} 42... Rxa3 {[%clk
0:00:20.7]} 43. Ne5 {[%clk 0:00:16.8]} 43... Ra6 {[%clk 0:00:20]} 44. Rh8+
{[%clk 0:00:11.7]} 44... Kg7 {[%clk 0:00:19.8]} 45. Rb8 {[%clk 0:00:11.6]} 45...
Re6 {[%clk 0:00:17]} 46. Rb7+ {[%clk 0:00:10]} 46... Kg8 {[%clk 0:00:16.1]} 47.
Nxg6 {[%clk 0:00:05.4]} 47... Nd5 {[%clk 0:00:12.8]} 48. Nh4 {[%clk 0:00:04.4]}
48... Nf4 {[%clk 0:00:10.8]} 49. Nf3 {[%clk 0:00:04.3]} 49... Rg6 {[%clk
0:00:08.7]} 50. g4 {[%clk 0:00:02.9]} 50... Nxh3 {[%clk 0:00:08.1]} 51. Rb8+
{[%clk 0:00:02.9]} 51... Kg7 {[%clk 0:00:08.1]} 52. Rb7+ {[%clk 0:00:03.8]}
52... Kg8 {[%clk 0:00:08.6]} 53. Ne5 {[%clk 0:00:02.3]} 53... Rh6 {[%clk
0:00:05.6]} 54. Rb8+ {[%clk 0:00:02.2]} 54... Kg7 {[%clk 0:00:05.3]} 55. Kg2
{[%clk 0:00:01.9]} 55... Nf4+ {[%clk 0:00:04.7]} 56. Kf3 {[%clk 0:00:02.5]}
56... Ne6 {[%clk 0:00:05.3]} 57. Rb7+ {[%clk 0:00:02.6]} 57... Kg8 {[%clk
0:00:05.4]} 58. Rb8+ {[%clk 0:00:02.4]} 58... Kg7 {[%clk 0:00:05.8]} 59. Rb7+
{[%clk 0:00:03]} 59... Kf8 {[%clk 0:00:06.1]} 60. Ke4 {[%clk 0:00:03.1]} 60...
Rh1 {[%clk 0:00:04.2]} 61. Rf7+ {[%clk 0:00:02.8]} 61... Kg8 {[%clk 0:00:03.7]}
62. Rf6 {[%clk 0:00:03.2]} 62... Ng7 {[%clk 0:00:03.4]} 63. Kf4 {[%clk
0:00:03.3]} 63... Rf1+ {[%clk 0:00:02.6]} 64. Kg5 {[%clk 0:00:03.7]} 64... Ra1
{[%clk 0:00:01.9]} 65. Ng6 {[%clk 0:00:02.8]} 65... Ra5+ {[%clk 0:00:01.7]} 66.
Kh4 {[%clk 0:00:02.8]} 1-0

[Event "Late-Titled-Tuesday-Blitz-March-12-2024"]
[Site "Chess.com"]
[Date "2024.03.12"]
[Round "5"]
[White "Vladimir_Zakhartsov"]
[Black "GHANDEEVAM2003"]
[Result "1-0"]
[WhiteElo "2939"]
[BlackElo "3087"]
[TimeControl "180+1"]
[EndTime "14:55:38 PDT"]
[Termination "Vladimir_Zakhartsov won by resignation"]

1. d4 {[%clk 0:03:00.9]} 1... g6 {[%clk 0:02:57.8]} 2. e4 {[%clk 0:02:59.6]}
2... Bg7 {[%clk 0:02:58.2]} 3. Nc3 {[%clk 0:02:58.9]} 3... c6 {[%clk 0:02:57.9]}
4. Nf3 {[%clk 0:02:52.1]} 4... d5 {[%clk 0:02:56.2]} 5. h3 {[%clk 0:02:50.3]}
5... Nf6 {[%clk 0:02:54.9]} 6. Bd3 {[%clk 0:02:49.7]} 6... dxe4 {[%clk
0:02:53.8]} 7. Nxe4 {[%clk 0:02:50.6]} 7... Bf5 {[%clk 0:02:54]} 8. Nxf6+ {[%clk
0:02:41.2]} 8... Bxf6 {[%clk 0:02:54.9]} 9. O-O {[%clk 0:02:40.2]} 9... Nd7
{[%clk 0:02:52.5]} 10. Bxf5 {[%clk 0:02:37.8]} 10... gxf5 {[%clk 0:02:53.4]} 11.
d5 {[%clk 0:02:37.8]} 11... cxd5 {[%clk 0:02:37.4]} 12. Qxd5 {[%clk 0:02:36.3]}
12... Ne5 {[%clk 0:02:38]} 13. Qb5+ {[%clk 0:02:00.3]} 13... Qd7 {[%clk
0:02:37.3]} 14. Qxd7+ {[%clk 0:01:55.3]} 14... Nxd7 {[%clk 0:02:38.2]} 15. c3
{[%clk 0:01:53.8]} 15... Rg8 {[%clk 0:02:24.4]} 16. Be3 {[%clk 0:01:52.8]} 16...
O-O-O {[%clk 0:02:23.4]} 17. Rfd1 {[%clk 0:01:45.2]} 17... b6 {[%clk 0:02:17.6]}
18. a4 {[%clk 0:01:44.7]} 18... Nc5 {[%clk 0:02:04.1]} 19. Bxc5 {[%clk
0:01:27.3]} 19... bxc5 {[%clk 0:02:05]} 20. Nd2 {[%clk 0:01:27]} 20... Rd3
{[%clk 0:02:02.6]} 21. Nc4 {[%clk 0:01:25.4]} 21... Rxh3 {[%clk 0:01:38.4]} 22.
Rd5 {[%clk 0:01:24.5]} 22... f4 {[%clk 0:01:36.4]} 23. Rxc5+ {[%clk 0:01:16.6]}
23... Kb8 {[%clk 0:01:36.8]} 24. Rf5 {[%clk 0:01:03.3]} 24... Rh4 {[%clk
0:01:24.8]} 25. f3 {[%clk 0:00:57.1]} 25... Rh6 {[%clk 0:01:12.1]} 26. Rd1
{[%clk 0:00:53]} 26... Rhg6 {[%clk 0:01:06.6]} 27. Rd2 {[%clk 0:00:53.3]} 27...
e6 {[%clk 0:01:03.1]} 28. Rb5+ {[%clk 0:00:50.2]} 28... Ka8 {[%clk 0:01:02.6]}
29. a5 {[%clk 0:00:42.2]} 29... Rc8 {[%clk 0:00:49.5]} 30. Nd6 {[%clk
0:00:29.7]} 30... Rd8 {[%clk 0:00:50]} 31. Ne4 {[%clk 0:00:30]} 31... Rxd2
{[%clk 0:00:47.8]} 32. Nxd2 {[%clk 0:00:30.9]} 32... a6 {[%clk 0:00:45.4]} 33.
Rb6 {[%clk 0:00:19.8]} 33... Ka7 {[%clk 0:00:45.6]} 34. Rd6 {[%clk 0:00:19.8]}
34... Kb7 {[%clk 0:00:35.9]} 35. Ne4 {[%clk 0:00:19.1]} 35... Be5 {[%clk
0:00:29.7]} 36. Rb6+ {[%clk 0:00:16.8]} 36... Kc8 {[%clk 0:00:24.3]} 37. Rxa6
{[%clk 0:00:16.6]} 37... Bc7 {[%clk 0:00:24.8]} 38. b4 {[%clk 0:00:15.3]} 38...
Rg8 {[%clk 0:00:19]} 39. Nd6+ {[%clk 0:00:14.1]} 39... Kd7 {[%clk 0:00:17.7]}
40. Nb5 {[%clk 0:00:13.5]} 40... Bb8 {[%clk 0:00:17.2]} 41. Rb6 {[%clk
0:00:13.7]} 41... Kc8 {[%clk 0:00:10.7]} 42. a6 {[%clk 0:00:13.4]} 42... Rd8
{[%clk 0:00:10.8]} 43. a7 {[%clk 0:00:12.6]} 43... Bxa7 {[%clk 0:00:11]} 44.
Nxa7+ {[%clk 0:00:13.5]} 44... Kc7 {[%clk 0:00:11.9]} 45. Ra6 {[%clk 0:00:09.8]}
45... Kb7 {[%clk 0:00:11.6]} 46. Ra5 {[%clk 0:00:08]} 46... Kb6 {[%clk
0:00:12.2]} 47. Nb5 {[%clk 0:00:08]} 47... Rd1+ {[%clk 0:00:10.5]} 48. Kh2
{[%clk 0:00:07.9]} 48... Rc1 {[%clk 0:00:11.4]} 49. Nd6 {[%clk 0:00:04.7]} 49...
Rxc3 {[%clk 0:00:11.6]} 50. Nxf7 {[%clk 0:00:04.9]} 50... Rc4 {[%clk 0:00:10.7]}
51. Re5 {[%clk 0:00:04.8]} 51... Rxb4 {[%clk 0:00:10.6]} 52. Rxe6+ {[%clk
0:00:05.2]} 52... Kc5 {[%clk 0:00:11.5]} 53. Re4 {[%clk 0:00:05.2]} 53... Rxe4
{[%clk 0:00:11]} 54. fxe4 {[%clk 0:00:06.1]} 54... Kd4 {[%clk 0:00:11.9]} 55.
Ng5 {[%clk 0:00:06]} 55... h6 {[%clk 0:00:11.3]} 56. Nf3+ {[%clk 0:00:04.5]}
56... Kxe4 {[%clk 0:00:11.5]} 57. Kh3 {[%clk 0:00:05.2]} 57... h5 {[%clk
0:00:09.5]} 58. Kh4 {[%clk 0:00:05.1]} 58... Ke3 {[%clk 0:00:09.4]} 59. Kxh5
{[%clk 0:00:05.5]} 59... Kf2 {[%clk 0:00:10]} 60. Nh4 {[%clk 0:00:05.8]} 60...
Ke3 {[%clk 0:00:05.9]} 61. Kg4 {[%clk 0:00:05.7]} 61... Ke4 {[%clk 0:00:06.4]}
62. Kg5 {[%clk 0:00:06.1]} 62... Ke5 {[%clk 0:00:06.1]} 63. Ng6+ {[%clk
0:00:06.3]} 1-0

[Event "Late-Titled-Tuesday-Blitz-March-12-2024"]
[Site "Chess.com"]
[Date "2024.03.12"]
[Round "5"]
[White "wild3000"]
[Black "jinxy2009"]
[Result "0-1"]
[WhiteElo "2394"]
[BlackElo "2224"]
[TimeControl "180+1"]
[EndTime "14:55:43 PDT"]
[Termination "jinxy2009 won on time"]

1. d4 {[%clk 0:01:41.7]} 1... Nf6 {[%clk 0:02:56.7]} 2. Nf3 {[%clk 0:01:42.6]}
2... g6 {[%clk 0:02:54.6]} 3. e3 {[%clk 0:01:43.5]} 3... d5 {[%clk 0:02:52.4]}
4. Be2 {[%clk 0:01:44.4]} 4... Bg7 {[%clk 0:02:52.8]} 5. O-O {[%clk 0:01:45.3]}
5... O-O {[%clk 0:02:53.2]} 6. b3 {[%clk 0:01:45.1]} 6... c5 {[%clk 0:02:53.8]}
7. Bb2 {[%clk 0:01:34.9]} 7... Nc6 {[%clk 0:02:50.6]} 8. c4 {[%clk 0:01:34.4]}
8... cxd4 {[%clk 0:02:44.7]} 9. Nxd4 {[%clk 0:01:34.3]} 9... Nxd4 {[%clk
0:02:30.3]} 10. Bxd4 {[%clk 0:01:33.6]} 10... dxc4 {[%clk 0:02:00.2]} 11. Bxc4
{[%clk 0:01:33]} 11... Qc7 {[%clk 0:01:57]} 12. Nd2 {[%clk 0:01:29]} 12... e5
{[%clk 0:01:47.3]} 13. Bb2 {[%clk 0:01:28.5]} 13... Bg4 {[%clk 0:01:35.2]} 14.
f3 {[%clk 0:01:25.2]} 14... Bd7 {[%clk 0:01:32.3]} 15. Qe2 {[%clk 0:01:23.7]}
15... Rfd8 {[%clk 0:01:31.6]} 16. Rfd1 {[%clk 0:01:19]} 16... Bc6 {[%clk
0:01:24.8]} 17. a4 {[%clk 0:01:17]} 17... Rd7 {[%clk 0:00:52.6]} 18. Nf1 {[%clk
0:01:12.7]} 18... Rad8 {[%clk 0:00:51.7]} 19. Rxd7 {[%clk 0:01:11.9]} 19... Nxd7
{[%clk 0:00:49.2]} 20. a5 {[%clk 0:01:06.6]} 20... e4 {[%clk 0:00:36]} 21. Bxg7
{[%clk 0:01:05]} 21... Kxg7 {[%clk 0:00:35.9]} 22. f4 {[%clk 0:01:03.8]} 22...
Nc5 {[%clk 0:00:31.1]} 23. Ng3 {[%clk 0:00:47]} 23... f5 {[%clk 0:00:23.7]} 24.
h4 {[%clk 0:00:42.5]} 24... Qe7 {[%clk 0:00:18.5]} 25. h5 {[%clk 0:00:41.2]}
25... Nd3 {[%clk 0:00:17.3]} 26. Bxd3 {[%clk 0:00:24.4]} 26... exd3 {[%clk
0:00:18.2]} 27. Qb2+ {[%clk 0:00:24.6]} 27... Qf6 {[%clk 0:00:17.5]} 28. h6+
{[%clk 0:00:24.2]} 28... Kf7 {[%clk 0:00:16.9]} 29. Qxf6+ {[%clk 0:00:21.7]}
29... Kxf6 {[%clk 0:00:17.8]} 30. Rd1 {[%clk 0:00:18.6]} 30... Be4 {[%clk
0:00:14.1]} 31. Kf2 {[%clk 0:00:16.2]} 31... Rc8 {[%clk 0:00:12.9]} 32. Nf1
{[%clk 0:00:15.1]} 32... Rc2+ {[%clk 0:00:12.1]} 33. Nd2 {[%clk 0:00:14.8]}
33... Ra2 {[%clk 0:00:12.1]} 34. g3 {[%clk 0:00:13]} 34... Rxa5 {[%clk
0:00:10.6]} 35. g4 {[%clk 0:00:13.4]} 35... Ra2 {[%clk 0:00:09.9]} 36. g5+
{[%clk 0:00:13.3]} 36... Kf7 {[%clk 0:00:09.8]} 37. Ke1 {[%clk 0:00:13.8]} 37...
Rc2 {[%clk 0:00:10]} 38. Ra1 {[%clk 0:00:13.6]} 38... a6 {[%clk 0:00:09.6]} 39.
Rb1 {[%clk 0:00:13]} 39... b5 {[%clk 0:00:09.2]} 40. Ra1 {[%clk 0:00:13.2]}
40... Bb7 {[%clk 0:00:09.4]} 41. Kd1 {[%clk 0:00:12.2]} 41... Rc3 {[%clk
0:00:09.1]} 42. Rc1 {[%clk 0:00:11.1]} 42... b4 {[%clk 0:00:07.2]} 43. Ra1
{[%clk 0:00:10.7]} 43... Rc2 {[%clk 0:00:04.2]} 44. Ra5 {[%clk 0:00:09.2]} 44...
Ke7 {[%clk 0:00:04]} 45. Re5+ {[%clk 0:00:07.9]} 45... Kd6 {[%clk 0:00:04]} 46.
e4 {[%clk 0:00:07.5]} 46... fxe4 {[%clk 0:00:03.5]} 47. Nxe4+ {[%clk 0:00:07.7]}
47... Bxe4 {[%clk 0:00:03.7]} 48. Rxe4 {[%clk 0:00:08.6]} 48... a5 {[%clk
0:00:03.4]} 49. Rd4+ {[%clk 0:00:09]} 49... Kc5 {[%clk 0:00:03.2]} 50. Rxd3
{[%clk 0:00:09.1]} 50... Rc3 {[%clk 0:00:03.5]} 51. Rd7 {[%clk 0:00:09.3]} 51...
Rxb3 {[%clk 0:00:03.7]} 52. Rxh7 {[%clk 0:00:09.9]} 52... a4 {[%clk 0:00:04.2]}
53. Rc7+ {[%clk 0:00:09.3]} 53... Kb5 {[%clk 0:00:03.8]} 54. h7 {[%clk
0:00:09.4]} 54... Rh3 {[%clk 0:00:04]} 55. f5 {[%clk 0:00:08.6]} 55... gxf5
{[%clk 0:00:03.7]} 56. g6 {[%clk 0:00:08.8]} 56... a3 {[%clk 0:00:04.3]} 57.
Rb7+ {[%clk 0:00:08.8]} 57... Kc4 {[%clk 0:00:04.1]} 58. Rc7+ {[%clk 0:00:08.5]}
58... Kd3 {[%clk 0:00:03.9]} 59. g7 {[%clk 0:00:09.4]} 59... a2 {[%clk
0:00:03.6]} 60. Rd7+ {[%clk 0:00:08]} 60... Kc3 {[%clk 0:00:04.1]} 61. Ra7
{[%clk 0:00:06.2]} 61... Rxh7 {[%clk 0:00:04.2]} 62. g8=Q {[%clk 0:00:05.9]}
62... Rxa7 {[%clk 0:00:04.3]} 63. Qc8+ {[%clk 0:00:05.7]} 63... Kb2 {[%clk
0:00:04.3]} 64. Qh8+ {[%clk 0:00:05]} 64... Ka3 {[%clk 0:00:04.1]} 65. Qa1
{[%clk 0:00:04.3]} 65... Rd7+ {[%clk 0:00:03.9]} 66. Ke2 {[%clk 0:00:03.6]}
66... Rc7 {[%clk 0:00:02.8]} 67. Kd3 {[%clk 0:00:02.2]} 67... Rc3+ {[%clk
0:00:02.6]} 68. Kd4 {[%clk 0:00:01.8]} 68... Rb3 {[%clk 0:00:02.2]} 69. Qc1+
{[%clk 0:00:01.7]} 69... Ka4 {[%clk 0:00:02.1]} 0-1